fUSD/lending_fUSD_20240811
["ID","MTS","AMOUNT","RATE_DAILY","PERIOD"]
[334634491,1723368632723,-290.16336359,0.000109,2]
[334634492,1723368632735,-472.14322502,0.000109,2]
[334634493,1723368632750,-6696.57554719,0.000109,2]
[334634494,1723368632761,-15207.38845316,0.000109,2]
[334634495,1723368632774,-389.84087267,0.000109,2]
[334634496,1723368632787,-10267.24643384,0.000109,2]
[334634505,1723368637772,-2709.20962988,0.000109,2]
[334634506,1723368637784,-974.16207443,0.000109,2]
[334634507,1723368637797,-399.08923112,0.000109,2]
[334634508,1723368637808,-1662.12038026,0.000109,2]
[334634509,1723368637868,-1037.97768649,0.000109,2]
[334634510,1723368637879,-7282.27187553,0.000109,2]
[334634511,1723368637958,-34550.28110453,0.000109,2]
[334634512,1723368637972,-930.51620209,0.000109,2]
[334634513,1723368637985,-5808.32989986,0.000109,2]
[334634514,1723368638051,-70241.64892783,0.000109,2]
[334634515,1723368638066,-301.11415239,0.000109,2]
[334634516,1723368638077,-1249.1832568,0.000109,2]
[334634668,1723368639870,-499.9996419,0.000109,2]
[334634669,1723368639889,-1206.83348292,0.000109,2]
[334634671,1723368639978,-1267153.82545536,0.000109,2]
[334634672,1723368639987,-7244.6679,0.000109,2]
[334634673,1723368639996,-150.0,0.000109,2]
[334634674,1723368640005,-150.0,0.00010914,2]
[334634675,1723368640015,-150.0,0.00010925,2]
[334634676,1723368640024,-150.0,0.00010949,2]
[334634677,1723368640035,-150.0,0.00010954,2]
[334634678,1723368640044,-250.0,0.00010959,2]
[334634679,1723368640053,-150.0,0.00010976,2]
[334634680,1723368640063,-251.64410563,0.00010979,2]
[334634681,1723368640072,-220.95108025,0.00010979,2]
[334634682,1723368640081,-500.0,0.00010979,2]
[334634683,1723368640091,-500.0,0.00010979,2]
[334634684,1723368640103,-500.0,0.00010979,2]
[334634685,1723368640114,-500.0,0.00010979,2]
[334634686,1723368640123,-500.0,0.00010979,2]
[334634687,1723368640133,-500.0,0.00010979,2]
[334634688,1723368640143,-500.0,0.00010979,2]
[334634689,1723368640152,-500.0,0.00010979,2]
[334634690,1723368640161,-500.0,0.00010979,2]
[334634691,1723368640171,-500.0,0.00010979,2]
[334634692,1723368640182,-211.78373163,0.00010979,2]
[334634693,1723368640192,-500.0,0.00010979,2]
[334634694,1723368640202,-1942477.72952119,0.0001098,2]
[334634695,1723368640212,-150.0,0.00010989,2]
[334634696,1723368640223,-150.0,0.00010991,2]
[334634697,1723368640233,-150.0,0.00010992,2]
[334634698,1723368640243,-12378.6617725,0.00010993,2]
[334634699,1723368640253,-116248.3844435,0.00010993,2]
[334634700,1723368640262,-4939.781637,0.00010993,2]
[334634701,1723368640271,-150.01,0.00010999,2]
[334634702,1723368640282,-2955.06352617,0.00010999,2]
[334634703,1723368640291,-200592.11459129,0.00011,2]
[334634704,1723368640300,-4204033.21152737,0.00011,2]
[334634705,1723368640312,-242795.89811579,0.00011,2]
[334634706,1723368640334,-26562.30521915,0.00011,2]
[334634707,1723368640346,-1748.56626615,0.00011,2]
[334634709,1723368640357,-1120.0285415,0.00011,2]
[334634710,1723368640368,-1543.08417187,0.00011,2]
[334634711,1723368640379,-5427.19204843,0.00011,2]
[334634731,1723368642750,-1052.727132,0.00010949,2]
[334634732,1723368642841,-775.40015833,0.00010949,2]
[334634733,1723368642851,-192.59984171,0.00011,2]
[334634734,1723368642862,-4640.0,0.00011,2]
[334634773,1723368643604,-228031.89112806,0.00011,2]
[334634991,1723368645902,-211.19180732,0.00010999,2]
[334634993,1723368645913,-1343.97864208,0.00010999,2]
[334634996,1723368645935,-1611.08488409,0.00010999,2]
[334634998,1723368645944,-3041.31349103,0.00011,2]
[334635013,1723368646124,-41104.48203389,0.00011,2]
[334635021,1723368646215,-9264.60940976,0.00011,2]
[334635285,1723368673473,227.74801183,8.219e-05,2]
[334635307,1723368750856,150.0,0.00024231,120]
[334635331,1723368861468,250.0,9.508e-05,2]
[334635332,1723368925471,227.74801183,9.508e-05,2]
[334635333,1723368990901,220.0,9.478e-05,2]
[334635334,1723369026496,227.74801183,9.478e-05,2]
[334635335,1723369096764,83.97596451,8.219e-05,2]
[334635336,1723369096788,548.23403549,8.219e-05,2]
[334635337,1723369122005,227.74801183,9.478e-05,2]
[334635338,1723369133583,223.66,9.454e-05,2]
[334635339,1723369212522,185.20613436,9.454e-05,2]
[334635341,1723369263882,18924.37,9.428e-05,2]
[334635386,1723369572267,636.33,8.219e-05,2]
[334635390,1723369672335,-409.7464,9.683e-05,2]
[334635391,1723369672357,-165.49338695,0.0001,2]
[334635392,1723369672378,-210.9584135,0.0001,2]
[334635393,1723369672399,-150.0,0.00010164,2]
[334635394,1723369672421,-297.76,0.00010185,2]
[334635395,1723369672443,-297.76,0.00010188,2]
[334635396,1723369672466,-297.76,0.0001019,2]
[334635397,1723369672487,-297.76,0.00010193,2]
[334635398,1723369672509,-297.76,0.00010196,2]
[334635399,1723369672530,-297.76,0.00010198,2]
[334635400,1723369672551,-297.76,0.00010201,2]
[334635401,1723369672574,-1000.0,0.00010201,2]
[334635402,1723369672595,-499.99,0.00010201,2]
[334635403,1723369672617,-297.76,0.00010204,2]
[334635404,1723369672639,-297.76,0.00010207,2]
[334635405,1723369672661,-297.76,0.00010209,2]
[334635406,1723369672682,-297.76,0.00010212,2]
[334635407,1723369672704,-297.76,0.00010215,2]
[334635408,1723369672725,-297.76,0.00010217,2]
[334635409,1723369672746,-297.76,0.0001022,2]
[334635410,1723369672768,-297.76,0.00010223,2]
[334635411,1723369672789,-297.76,0.00010225,2]
[334635412,1723369672815,-297.76,0.00010228,2]
[334635413,1723369672836,-297.76,0.00010231,2]
[334635414,1723369672857,-297.76,0.00010233,2]
[334635415,1723369672878,-297.76,0.00010236,2]
[334635416,1723369672903,-636.33,0.00010449,2]
[334635417,1723369672927,-150.0,0.0001045,2]
[334635418,1723369672953,-165.01000426,0.000109,2]
[334635419,1723369672972,-321.87594569,0.000109,2]
[334635420,1723369672992,-173.03877897,0.000109,2]
[334635421,1723369673012,-250.0,0.00010959,2]
[334635422,1723369673034,-333.52,0.00010959,2]
[334635423,1723369673055,-15733.52175305,0.00010983,2]
[334635424,1723369673076,-14228.3595674,0.00010993,2]
[334635425,1723369673095,-5594.720531,0.00010993,2]
[334635426,1723369673115,-50587.23521918,0.00010993,2]
[334635427,1723369722005,-522.80021426,9.962e-05,2]
[334635428,1723369722026,-1051.64616279,0.0001,2]
[334635436,1723369831971,-321.87594569,0.000109,2]
[334635437,1723369831981,-321.92762054,0.000109,2]
[334635438,1723369831991,-300.0,0.00010989,2]
[334635439,1723369832004,-5131.19643377,0.0001099,2]
[334635440,1723369832015,-700.0,0.0001099,2]
[334635441,1723369832077,-126397.90912963,0.0001099,2]
[334635442,1723369832088,-13067.9778156,0.0001099,2]
[334635443,1723369832097,-5138.447861,0.0001099,2]
[334635444,1723369832107,-150.0,0.00010992,2]
[334635445,1723369832117,-160.95450747,0.00010997,2]
[334635446,1723369832127,-500.0,0.00010999,2]
[334635447,1723369832136,-376.0962633,0.00010999,2]
[334635448,1723369832146,-2951.71619586,0.00010999,2]
[334635449,1723369832155,-176.15087394,0.00010999,2]
[334635450,1723369832165,-1712.0,0.00011,2]
[334635451,1723369832175,-140457.3209011,0.00011,2]
[334635452,1723369832185,-497393.70263101,0.00011,2]
[334635453,1723369832214,-600.0,0.00011,2]
[334635455,1723369837939,-866.82892756,0.00011,2]
[334635456,1723369837973,-327.72557854,0.00011,2]
[334635457,1723369838171,-393.4454939,0.00011,2]
[334635458,1723369838182,-164.44815977,0.00011,2]
[334635459,1723369838194,-2440.67190885,0.00011,2]
[334635460,1723369838205,-33740.1538901,0.00011,2]
[334635461,1723369838222,-26447.38168852,0.00011,2]
[334635462,1723369838233,-5979.78453988,0.00011,2]
[334635644,1723369839910,-2037.00551806,0.00011,2]
[334635646,1723369839922,-43353.24276413,0.00011,2]
[334635648,1723369839933,-5077.14760424,0.00011,2]
[334635650,1723369839945,-588.950825,0.00011,2]
[334635660,1723369840029,-0.0006112,0.00011,2]
[334635967,1723369842849,-1433.0,0.00011,2]
[334635969,1723369842859,-59853.75,0.00011,2]
[334635971,1723369842870,-467.40676096,0.00011,2]
[334635973,1723369842881,-824.32959124,0.00011,2]
[334636067,1723369843906,-603.35590555,0.00011,2]
[334636314,1723369846371,-0.04353508,0.00011,2]
[334636317,1723369846384,-3953.85977228,0.00011,2]
[334636373,1723369846905,-144.92544801,0.00011,2]
[334636376,1723369846917,-638.98582292,0.00011,2]
[334636408,1723370080465,831.27,8.871e-05,2]
[334636409,1723370130558,150.0,8.871e-05,2]
[334636410,1723370130580,77.74801183,8.871e-05,2]
[334636411,1723370130931,150.0,0.0002395,120]
[334636412,1723370131680,150.0,8.871e-05,2]
[334636413,1723370131704,150.0,8.871e-05,2]
[334636414,1723370131725,125.91305241,8.871e-05,2]
[334636415,1723370133042,20392.66258053,8.871e-05,2]
[334636416,1723370139813,150.0,8.871e-05,2]
[334636417,1723370139838,150.0,8.871e-05,2]
[334636418,1723370139861,150.0,8.871e-05,2]
[334636419,1723370139887,35.65497579,8.871e-05,2]
[334636420,1723370140609,168.56420464,8.871e-05,2]
[334636421,1723370140633,108.31405186,8.871e-05,2]
[334636422,1723370142003,155.19416731,8.871e-05,2]
[334636423,1723370147898,291.61081008,8.871e-05,2]
[334636424,1723370148913,150.0,8.871e-05,2]
[334636425,1723370148939,5.0,8.871e-05,2]
[334636426,1723370152354,155.45361423,8.871e-05,2]
[334636427,1723370153164,364.02854252,8.871e-05,2]
[334636428,1723370153589,155.0,8.871e-05,2]
[334636429,1723370156460,890.76917749,8.871e-05,2]
[334636430,1723370162691,159.06688292,8.871e-05,2]
[334636431,1723370166157,155.08682805,8.871e-05,2]
[334636432,1723370190219,155.0,8.871e-05,2]
[334636433,1723370210151,150.0,8.871e-05,2]
[334636434,1723370210173,291.35588901,8.871e-05,2]
[334636435,1723370224195,275.51374897,8.871e-05,2]
[334636436,1723370227012,20392.66258053,8.871e-05,2]
[334636437,1723370228531,227.74801183,8.871e-05,2]
[334636438,1723370228683,364.02854252,8.871e-05,2]
[334636439,1723370240901,291.61081008,8.871e-05,2]
[334636440,1723370243534,227.74801183,8.871e-05,2]
[334636441,1723370251704,155.47324613,8.871e-05,2]
[334636442,1723370252698,159.06688292,8.871e-05,2]
[334636444,1723370281598,150.0,8.871e-05,2]
[334636445,1723370281619,112.6666201,8.871e-05,2]
[334636446,1723370300143,155.14035432,8.871e-05,2]
[334636447,1723370313721,150.0,8.871e-05,2]
[334636448,1723370313745,214.02854252,8.871e-05,2]
[334636449,1723370327931,361.22253633,8.871e-05,2]
[334636450,1723370328695,159.11812708,8.871e-05,2]
[334636451,1723370337003,20380.11542823,8.871e-05,2]
[334636452,1723370351493,150.0,8.259e-05,2]
[334636453,1723370365531,227.74801183,8.871e-05,2]
[334636454,1723370383031,150.0,8.871e-05,2]
[334636455,1723370383054,77.74801183,8.871e-05,2]
[334636456,1723370394713,482.19452113,8.871e-05,2]
[334636458,1723370510572,150.0,8.871e-05,2]
[334636459,1723370510599,77.74801183,8.871e-05,2]
[334636461,1723370537875,150.0,8.219e-05,2]
[334636462,1723370537898,150.0,8.219e-05,2]
[334636463,1723370537919,150.0,8.219e-05,2]
[334636464,1723370537941,150.0,8.219e-05,2]
[334636465,1723370537963,150.0,8.219e-05,2]
[334636466,1723370537985,97.66,8.219e-05,2]
[334636475,1723370616629,600.0,8.219e-05,2]
[334636476,1723370637537,227.74801183,8.219e-05,2]
[334636477,1723370650561,150.0,8.219e-05,2]
[334636478,1723370650583,77.74801183,8.219e-05,2]
[334636519,1723370750858,-150.0,0.00025116,120]
[334636520,1723370750882,-150.0,0.00025158,120]
[334636521,1723370750912,-150.0,0.00025383,120]
[334636522,1723370750936,-150.0,0.00025416,120]
[334636523,1723370750972,-150.0,0.00025789,120]
[334636524,1723370750995,-150.0,0.00025818,120]
[334636525,1723370751026,-150.0,0.00025854,120]
[334636526,1723370751049,-150.0,0.00025962,120]
[334636527,1723370751074,-150.0,0.0002601,120]
[334636528,1723370751102,-150.0,0.00026048,120]
[334636529,1723370751127,-150.0,0.00026062,120]
[334636530,1723370751150,-150.0,0.00026169,120]
[334636531,1723370751174,-150.0,0.00026228,120]
[334636532,1723370751197,-150.0,0.00026239,120]
[334636533,1723370751226,-150.0,0.00026312,120]
[334636534,1723370751250,-150.0,0.0002642,120]
[334636535,1723370751273,-150.0,0.00026528,120]
[334636536,1723370751296,-150.0,0.00026532,120]
[334636537,1723370751325,-150.0,0.00026594,120]
[334636538,1723370751349,-150.0,0.00026629,120]
[334636539,1723370751374,-150.0,0.00026644,120]
[334636540,1723370751397,-150.0,0.00026836,120]
[334636541,1723370751608,-150.0,0.00026858,120]
[334636542,1723370751632,-150.0,0.00026866,120]
[334636543,1723370751660,-317550.28810965,0.00027,120]
[334636544,1723370751684,-1078849.71189035,0.00027,120]
[334636545,1723370751764,227.74801183,8.219e-05,2]
[334636546,1723370762560,-12576.18862022,0.00027,120]
[334636547,1723370762582,-1000.0,0.00027,120]
[334636575,1723370970840,150.0,0.00026415,120]
[334636582,1723371028221,805.27,8.219e-05,2]
[334636610,1723371032134,-1000.0,9.702e-05,2]
[334636611,1723371032143,-250.0,9.705e-05,2]
[334636612,1723371032153,-220.0,9.71e-05,2]
[334636613,1723371032163,-2054.1996805,9.715e-05,2]
[334636614,1723371032174,-612.68743692,9.715e-05,2]
[334636618,1723371033362,-2448.9258045,9.715e-05,2]
[334636673,1723371038351,-393.41707808,9.715e-05,2]
[334636674,1723371038360,-223.66,9.722e-05,2]
[334636675,1723371038370,-805.27,0.00010461,2]
[334636676,1723371038380,-175.19,0.00010508,2]
[334636677,1723371038389,-230.54,0.00010583,2]
[334636678,1723371038398,-230.54,0.00010585,2]
[334636679,1723371038407,-230.54,0.00010588,2]
[334636680,1723371038417,-230.54,0.00010591,2]
[334636681,1723371038426,-230.54,0.00010594,2]
[334636682,1723371038435,-300.0,0.00010595,2]
[334636683,1723371038445,-230.54,0.00010596,2]
[334636684,1723371038454,-499.99,0.00010596,2]
[334636685,1723371038464,-230.54,0.00010599,2]
[334636686,1723371038473,-230.54,0.00010602,2]
[334636687,1723371038482,-230.54,0.00010605,2]
[334636688,1723371038491,-230.54,0.00010608,2]
[334636689,1723371038501,-230.54,0.0001061,2]
[334636690,1723371038510,-230.54,0.00010613,2]
[334636691,1723371038519,-230.54,0.00010616,2]
[334636692,1723371038528,-230.54,0.00010619,2]
[334636693,1723371038541,-230.54,0.00010622,2]
[334636694,1723371038550,-230.54,0.00010624,2]
[334636695,1723371038559,-230.54,0.00010627,2]
[334636696,1723371038568,-230.54,0.0001063,2]
[334636697,1723371038578,-230.54,0.00010633,2]
[334636698,1723371038587,-230.54,0.00010636,2]
[334636699,1723371038596,-782.46178449,0.0001089,2]
[334636700,1723371038605,-2173.6263,0.0001089,2]
[334636701,1723371038617,-5833.2027,0.00010897,2]
[334636702,1723371038627,-5581.6971279,0.000109,2]
[334636703,1723371038651,-2647.6506721,0.000109,2]
[334636704,1723371038660,-48244.4579,0.000109,2]
[334636705,1723371038669,-496.68196368,0.000109,2]
[334636706,1723371038679,-429.23682738,0.000109,2]
[334636707,1723371038688,-321.32459989,0.000109,2]
[334636708,1723371038698,-1000.0,0.00010914,2]
[334636709,1723371038707,-250.0,0.00010959,2]
[334636711,1723371038717,-812.7813003,0.0001099,2]
[334636713,1723371038726,-165.1808075,0.00010997,2]
[334636715,1723371038735,-117742.6058047,0.00010997,2]
[334636716,1723371038744,-11636.3016603,0.00010997,2]
[334636718,1723371038754,-4609.478873,0.00010997,2]
[334636720,1723371038764,-207.7720022,0.00010999,2]
[334636722,1723371038773,-2192.14628336,0.00010999,2]
[334636724,1723371038782,-1479.0,0.00011,2]
[334636726,1723371038791,-103064.61629683,0.00011,2]
[334636728,1723371038801,-6347928.24307501,0.00011,2]
[334636759,1723371039057,-47645.499317,0.00011,2]
[334636761,1723371039068,-298.41728368,0.00011,2]
[334636763,1723371039079,-10910.96584961,0.00011,2]
[334637269,1723371044379,-422.69,0.00010959,2]
[334637271,1723371044388,-22586.21933301,0.00011,2]
[334637273,1723371044400,-78987.19136231,0.00011,2]
[334637276,1723371044412,-155198.0937,0.00011,2]
[334637475,1723371046157,-529.54469524,0.00011,2]
[334637478,1723371046169,-412.40397948,0.00011,2]
[334637485,1723371046202,-3348.50149363,0.00011,2]
[334637511,1723371046430,-675.00838656,0.00011,2]
[334637513,1723371046442,-315.79999999,0.00011,2]
[334637515,1723371046453,-1650.24238056,0.00011,2]
[334637519,1723371046484,-310.0,0.00011,2]
[334638420,1723371117854,173.1217435,9.605e-05,2]
[334638421,1723371117876,4736.2659565,9.605e-05,2]
[334638422,1723371151066,150.0,0.00024008,120]
[334638431,1723371330854,150.0,0.00026408,120]
[334638432,1723371377185,150.0,9.65e-05,2]
[334638433,1723371377206,5.0,9.65e-05,2]
[334638434,1723371390842,150.0,0.00026502,120]
[334638436,1723371450772,150.0,0.00025321,120]
[334638437,1723371525547,760.47,8.385e-05,2]
[334638438,1723371563752,173.1217435,8.385e-05,2]
[334638439,1723371590107,227.74801183,8.385e-05,2]
[334638441,1723371631307,150.0,0.00025572,120]
[334638442,1723371690813,150.0,0.00026074,120]
[334638448,1723371811337,150.0,0.00025428,120]
[334638470,1723371990814,150.0,0.00026887,120]
[334638471,1723371996500,722.44,8.219e-05,2]
[334638477,1723372055739,150.0,8.219e-05,2]
[334638478,1723372055760,77.74801183,8.219e-05,2]
[334638486,1723372232220,-700.0,0.00010109,2]
[334638489,1723372232234,-956.69375819,0.00010109,2]
[334638505,1723372232353,-3702.08686573,0.00010109,2]
[334638507,1723372232365,-642.3977412,0.00010109,2]
[334638509,1723372232376,-678.69156372,0.00010109,2]
[334638511,1723372232395,-2105.98349596,0.00010109,2]
[334638512,1723372232404,-230.78416421,0.00010119,2]
[334638513,1723372232427,-19.21583579,0.00010119,2]
[334638514,1723372232436,-1000.0,0.00010209,2]
[334638515,1723372232448,-223.66,0.00010224,2]
[334638516,1723372232460,-722.44,0.00010478,2]
[334638517,1723372232469,-300.0,0.00010799,2]
[334638518,1723372232478,-1005.0,0.000108,2]
[334638519,1723372232487,-1000.0,0.000108,2]
[334638520,1723372232497,-1000.0,0.000108,2]
[334638521,1723372232507,-400.0,0.00010809,2]
[334638522,1723372232516,-1902.57583,0.0001089,2]
[334638523,1723372232525,-1000.0,0.0001089,2]
[334638524,1723372232534,-997.5906,0.0001089,2]
[334638525,1723372232544,-2500.0,0.0001089,2]
[334638526,1723372232553,-8092.2519,0.00010897,2]
[334638527,1723372232562,-152.67384191,0.00010898,2]
[334638528,1723372232571,-1106.89485806,0.00010898,2]
[334638529,1723372232581,-321.32459988,0.00010898,2]
[334638530,1723372232590,-150.0,0.00010899,2]
[334638531,1723372232599,-1106.89485804,0.00010899,2]
[334638532,1723372232608,-22150.55,0.000109,2]
[334638533,1723372232617,-5081.5,0.000109,2]
[334638534,1723372232627,-1106.89485804,0.000109,2]
[334638535,1723372232636,-250.0,0.00010959,2]
[334638536,1723372232645,-200.7247488,0.00010973,2]
[334638537,1723372232654,-300.38631559,0.00010973,2]
[334638538,1723372232663,-782.0,0.00010986,2]
[334638539,1723372232673,-109164.0,0.00010986,2]
[334638540,1723372232682,-579.0,0.00010986,2]
[334638541,1723372232691,-168.05434707,0.00010987,2]
[334638542,1723372232702,-408.70465492,0.00010989,2]
[334638543,1723372232711,-459.93083446,0.00010989,2]
[334638544,1723372232720,-500.0,0.00010989,2]
[334638545,1723372232729,-293.12747687,0.00010989,2]
[334638546,1723372232738,-500.0,0.00010989,2]
[334638547,1723372232749,-500.0,0.00010989,2]
[334638548,1723372232759,-351.43198549,0.00010989,2]
[334638549,1723372232770,-500.0,0.00010989,2]
[334638550,1723372232779,-481.69194623,0.00010989,2]
[334638551,1723372232789,-220.18799402,0.00010989,2]
[334638552,1723372232798,-73364.21936287,0.0001099,3]
[334638553,1723372232816,-606.84116287,0.0001099,3]
[334638554,1723372232836,-3001.32405636,0.0001099,3]
[334638555,1723372232847,-578.5596183,0.0001099,3]
[334638558,1723372238624,-260.89985983,0.0001089,2]
[334638559,1723372238637,-18580.03199997,0.0001089,2]
[334638560,1723372238653,-127736.19999999,0.0001089,2]
[334638561,1723372238669,-3513.2,0.0001089,2]
[334638562,1723372238682,-94909.66814021,0.0001089,2]
[334638563,1723372238693,-22590.85096767,0.0001099,3]
[334638564,1723372238707,-659.75132017,0.0001099,3]
[334638610,1723372240278,-12680.5478965,0.0001099,3]
[334638611,1723372242658,-467.97999999,0.0001099,3]
[334638612,1723372242670,-250.0,0.0001099,3]
[334638613,1723372242778,-82509.47914597,0.0001099,3]
[334638614,1723372242809,-1679.44999998,0.0001099,3]
[334638615,1723372242838,-596439.999996,0.0001099,3]
[334638616,1723372242957,-616.89321857,0.0001099,3]
[334638619,1723372242968,-959.24343264,0.0001099,3]
[334638621,1723372242979,-6519.21920943,0.0001099,3]
[334638622,1723372242990,-1045.90635931,0.0001099,3]
[334638636,1723372243237,-325.95,0.0001099,3]
[334638637,1723372243250,-745.8867187,0.0001099,3]
[334638638,1723372243262,-266.23708256,0.0001099,3]
[334638639,1723372243273,-421.401,0.0001099,3]
[334638640,1723372243284,-558.39963997,0.0001099,3]
[334638641,1723372243299,-686.6132303,0.0001099,3]
[334638642,1723372243310,-906.17357973,0.0001099,3]
[334638643,1723372243321,-686.77,0.0001099,3]
[334638646,1723372243978,-406.07,0.0001099,3]
[334638647,1723372243989,-1519.46514969,0.0001099,3]
[334638648,1723372244001,-3792.97760677,0.0001099,3]
[334638649,1723372244012,-763.43869,0.0001099,3]
[334638650,1723372244024,-712.72580957,0.0001099,3]
[334638651,1723372244033,-5687.31678633,0.00010998,2]
[334638652,1723372244192,-1930.15878079,0.00010998,2]
[334638653,1723372244202,-2702.05064153,0.00010999,2]
[334638654,1723372244212,-4659.70023747,0.00010999,2]
[334638655,1723372244224,-1838.78,0.00010999,2]
[334638656,1723372244235,-1789.29207492,0.00010999,2]
[334638657,1723372246360,-1239.88380057,0.00010999,2]
[334638658,1723372246372,-618.3903605,0.00010999,2]
[334638659,1723372246384,-438.217861,0.00010999,2]
[334638660,1723372246435,-400.0,0.00010999,2]
[334638661,1723372246447,-583.77865046,0.00010999,2]
[334638662,1723372246489,-873.74712415,0.00010999,2]
[334638663,1723372246500,-3860.7078036,0.00010999,2]
[334638664,1723372246531,-805.58226419,0.00010999,2]
[334638665,1723372246543,-42891.91982314,0.00010999,2]
[334638666,1723372246553,-66691.34313638,0.00010999,2]
[334638667,1723372246564,-854.0,0.00010999,2]
[334638668,1723372246576,-3299.11777029,0.00010999,2]
[334638669,1723372246587,-10391.97917367,0.00010999,2]
[334638670,1723372246598,-1418.17641098,0.00010999,2]
[334638671,1723372246609,-1963.28462603,0.00010999,2]
[334638672,1723372246621,-12167.98526921,0.00010999,2]
[334638673,1723372246630,-1507.0,0.00010999,2]
[334638674,1723372246640,-7074.32534575,0.00011,2]
[334638676,1723372246651,-2458.01466891,0.00011,2]
[334638677,1723372246663,-297.41662691,0.00011,2]
[334638678,1723372246678,-700.086058,0.00011,2]
[334638679,1723372246690,-4034.80459684,0.00011,2]
[334638689,1723372351170,150.0,0.00024546,120]
[334638695,1723372464917,665.76,8.369e-05,2]
[334638696,1723372497642,227.74801183,8.369e-05,2]
[334638697,1723372597653,211.98089975,8.369e-05,2]
[334638698,1723372710760,150.0,0.00025494,120]
[334638708,1723372830775,150.0,0.0002692,120]
[334638714,1723372946431,150.0,8.219e-05,2]
[334638715,1723372946453,150.0,8.219e-05,2]
[334638716,1723372946476,150.0,8.219e-05,2]
[334638717,1723372946499,150.0,8.219e-05,2]
[334638718,1723372946526,32.47,8.219e-05,2]
[334638733,1723373432382,-250.0,9.663e-05,2]
[334638734,1723373432391,-153.57974888,9.726e-05,2]
[334638735,1723373432401,-1629.2792556,9.726e-05,2]
[334638736,1723373432413,-223.1407444,9.726e-05,2]
[334638737,1723373432422,-103.65975898,9.729e-05,2]
[334638738,1723373432434,-3801.29660468,9.729e-05,2]
[334638739,1723373432469,-1002.42083542,9.729e-05,2]
[334638740,1723373432481,-18711.19280092,9.729e-05,2]
[334638741,1723373432491,-200.0,9.749e-05,2]
[334638742,1723373432501,-446.11,9.772e-05,2]
[334638743,1723373432511,-215.69,9.82e-05,2]
[334638744,1723373432521,-335.62,9.832e-05,2]
[334638745,1723373432531,-320.0,9.862e-05,2]
[334638746,1723373432541,-258.62,9.88e-05,2]
[334638747,1723373432551,-7612.15,9.88e-05,2]
[334638748,1723373432561,-469.57,9.88e-05,2]
[334638749,1723373432571,-150.99,9.948e-05,2]
[334638750,1723373432581,-272.2,9.948e-05,2]
[334638751,1723373432591,-1000.0,9.97e-05,2]
[334638752,1723373432601,-155.76925433,0.00010144,2]
[334638753,1723373432611,-632.47,0.00010472,2]
[334638754,1723373432621,-200.0,0.0001052,2]
[334638755,1723373432631,-150.0,0.00010599,2]
[334638756,1723373432640,-10661.51234227,0.000106,2]
[334638757,1723373432652,-1676.12452515,0.000106,2]
[334638758,1723373432667,-488.10441734,0.000106,2]
[334638759,1723373432676,-100.64236635,0.000106,2]
[334638760,1723373432687,-1354.76763365,0.000106,2]
[334638761,1723373432696,-580.43,0.00010633,2]
[334638762,1723373432705,-73.97848491,0.000108,2]
[334638763,1723373432724,-247.34611497,0.000108,2]
[334638764,1723373432733,-8206.0983,0.00010886,2]
[334638765,1723373432742,-60037.04338082,0.0001089,2]
[334638766,1723373432754,-2157.70172192,0.0001089,2]
[334638772,1723373438626,-1527.24810745,0.0001089,2]
[334638773,1723373438638,-36278.00678981,0.0001089,2]
[334638774,1723373438647,-1000.0,0.0001089,2]
[334638775,1723373438656,-23221.99321015,0.0001089,2]
[334638776,1723373438668,-12212.22040255,0.0001089,2]
[334638777,1723373438683,-1120.66502401,0.0001089,2]
[334638778,1723373438887,-409.67839587,0.0001089,2]
[334638779,1723373438900,-20501.00796055,0.0001089,2]